[Event "Titled Tuesday Blitz November 07 Late 2023"]
[White "Minina, Veronika"]
[Black "Haitin, Ilja"]
[WhiteFideId "4174780"]
[BlackFideId "4501764"]
[WhiteElo "2287"]
[BlackElo "2406"]
[Result "1-0"]
[Round "9"]
[TimeControl "180+1"]
[Date "2023.11.07"]
[WhiteClock "0:00:07"]
[BlackClock "0:00:00"]
[Board "85"]

1. Nf3 {[%clk 0:02:58]}  d5 {[%clk 0:02:59]} 2. c4 {[%clk 0:02:57]}  dxc4 {[%clk 0:02:58]} 3. g3 {[%clk 0:02:57]}  b6 {[%clk 0:02:51]} 4. Bg2 {[%clk 0:02:56]}  Bb7 {[%clk 0:02:51]} 5. O-O {[%clk 0:02:56]}  g6 {[%clk 0:02:51]} 6. Na3 {[%clk 0:02:55]}  Bg7 {[%clk 0:02:51]} 7. Nxc4 {[%clk 0:02:55]}  Nf6 {[%clk 0:02:52]} 8. d4 {[%clk 0:02:50]}  O-O {[%clk 0:02:50]} 9. b3 {[%clk 0:02:47]}  Nbd7 {[%clk 0:02:50]} 10. Bb2 {[%clk 0:02:48]}  c5 {[%clk 0:02:48]} 11. Rc1 {[%clk 0:02:46]}  Rc8 {[%clk 0:02:47]} 12. Re1 {[%clk 0:02:35]}  cxd4 {[%clk 0:02:46]} 13. Nxd4 {[%clk 0:02:28]}  Bxg2 {[%clk 0:02:47]} 14. Kxg2 {[%clk 0:02:28]}  Nc5 {[%clk 0:02:37]} 15. f3 {[%clk 0:02:11]}  Nd5 {[%clk 0:02:33]} 16. a3 {[%clk 0:01:43]}  b5 {[%clk 0:02:15]} 17. e4 {[%clk 0:01:33]}  bxc4 {[%clk 0:02:03]} 18. exd5 {[%clk 0:01:33]}  cxb3 {[%clk 0:01:55]} 19. Qe2 {[%clk 0:00:51]}  Na4 {[%clk 0:01:46]} 20. Rxc8 {[%clk 0:00:47]}  Qxc8 {[%clk 0:01:47]} 21. Nc6 {[%clk 0:00:25]}  Qd7 {[%clk 0:01:08]} 22. Nxe7+ {[%clk 0:00:24]}  Kh8 {[%clk 0:01:07]} 23. Bxg7+ {[%clk 0:00:24]}  Kxg7 {[%clk 0:01:08]} 24. Qe5+ {[%clk 0:00:16]}  f6 {[%clk 0:01:07]} 25. Qd4 {[%clk 0:00:14]}  Nb6 {[%clk 0:00:40]} 26. Nc6 {[%clk 0:00:14]}  Rf7 {[%clk 0:00:33]} 27. Nb4 {[%clk 0:00:12]}  a5 {[%clk 0:00:26]} 28. Qxb6 {[%clk 0:00:11]}  axb4 {[%clk 0:00:26]} 29. Qxb4 {[%clk 0:00:12]}  Qxd5 {[%clk 0:00:25]} 30. Re3 {[%clk 0:00:10]}  Rb7 {[%clk 0:00:17]} 31. Qe1 {[%clk 0:00:08]}  b2 {[%clk 0:00:14]} 32. Re7+ {[%clk 0:00:08]}  Rxe7 {[%clk 0:00:12]} 33. Qxe7+ {[%clk 0:00:09]}  Qf7 {[%clk 0:00:06]} 34. Qb4 {[%clk 0:00:09]}  Qa2 {[%clk 0:00:04]} 35. Qe7+ {[%clk 0:00:06]}  Kg8 {[%clk 0:00:03]} 36. Qe8+ {[%clk 0:00:06]}  Kg7 {[%clk 0:00:00]} 37. Qe7+ {[%clk 0:00:07]} 1-0


[Site "https://www.chess.com"]

[Event "Titled Tuesday Blitz November 07 Late 2023"]
[White "PapaieDudu"]
[Black "Tarnowska, Aleksandra"]
[BlackFideId "1180967"]
[WhiteElo "2379"]
[BlackElo "2166"]
[Result "0-1"]
[Round "9"]
[TimeControl "180+1"]
[Date "2023.11.07"]
[WhiteClock "0:00:32"]
[BlackClock "0:00:13"]
[Board "86"]

1. e4 {[%clk 0:03:00]}  c5 {[%clk 0:02:59]} 2. Nf3 {[%clk 0:03:01]}  e6 {[%clk 0:02:59]} 3. d4 {[%clk 0:03:01]}  cxd4 {[%clk 0:03:00]} 4. Nxd4 {[%clk 0:03:02]}  a6 {[%clk 0:03:00]} 5. Nc3 {[%clk 0:03:02]}  Qc7 {[%clk 0:03:00]} 6. Be3 {[%clk 0:03:02]}  b5 {[%clk 0:02:58]} 7. Qd2 {[%clk 0:03:02]}  Bb7 {[%clk 0:02:58]} 8. O-O-O {[%clk 0:03:02]}  Nf6 {[%clk 0:02:58]} 9. f3 {[%clk 0:03:00]}  Be7 {[%clk 0:02:52]} 10. Ndxb5 {[%clk 0:02:59]}  axb5 {[%clk 0:02:49]} 11. Nxb5 {[%clk 0:03:00]}  Qc6 {[%clk 0:02:35]} 12. Kb1 {[%clk 0:02:58]}  O-O {[%clk 0:02:31]} 13. c4 {[%clk 0:02:58]}  d5 {[%clk 0:02:19]} 14. cxd5 {[%clk 0:02:57]}  exd5 {[%clk 0:02:16]} 15. Rc1 {[%clk 0:02:57]}  Qa6 {[%clk 0:02:05]} 16. Nc3 {[%clk 0:02:57]}  Qe6 {[%clk 0:01:58]} 17. Nb5 {[%clk 0:02:47]}  dxe4 {[%clk 0:01:37]} 18. Nc7 {[%clk 0:02:47]}  Qxa2+ {[%clk 0:01:34]} 19. Kc2 {[%clk 0:02:47]}  Qa4+ {[%clk 0:01:14]} 20. Kb1 {[%clk 0:02:45]}  Qa2+ {[%clk 0:01:06]} 21. Kc2 {[%clk 0:02:45]}  Rc8 {[%clk 0:00:50]} 22. Bb6 {[%clk 0:02:43]}  Ra6 {[%clk 0:00:47]} 23. Bxa6 {[%clk 0:02:42]}  Bxa6 {[%clk 0:00:39]} 24. Qd4 {[%clk 0:02:34]}  Bd3+ {[%clk 0:00:31]} 25. Kd2 {[%clk 0:02:35]}  Rd8 {[%clk 0:00:30]} 26. Ra1 {[%clk 0:02:15]}  Qb3 {[%clk 0:00:26]} 27. Qc3 {[%clk 0:01:43]}  Bb4 {[%clk 0:00:26]} 28. Ke1 {[%clk 0:00:44]}  Bxc3+ {[%clk 0:00:23]} 29. bxc3 {[%clk 0:00:32]}  Qc2 {[%clk 0:00:13]} 0-1


[Site "https://www.chess.com"]

[Event "Titled Tuesday Blitz November 07 Late 2023"]
[White "Bueno, Alfeu Junior Varela"]
[Black "Melikhov, Evgeny V."]
[WhiteFideId "2108879"]
[BlackFideId "4122046"]
[WhiteElo "2313"]
[BlackElo "2371"]
[Result "1-0"]
[Round "9"]
[TimeControl "180+1"]
[Date "2023.11.07"]
[WhiteClock "0:00:06"]
[BlackClock "0:00:38"]
[Board "90"]

1. e4 {[%clk 0:02:51]}  c5 {[%clk 0:02:58]} 2. Nc3 {[%clk 0:02:51]}  Nc6 {[%clk 0:02:58]} 3. f4 {[%clk 0:02:52]}  g6 {[%clk 0:02:57]} 4. Nf3 {[%clk 0:02:52]}  Bg7 {[%clk 0:02:57]} 5. Bb5 {[%clk 0:02:53]}  Nd4 {[%clk 0:02:56]} 6. O-O {[%clk 0:02:54]}  Nxb5 {[%clk 0:02:55]} 7. Nxb5 {[%clk 0:02:55]}  a6 {[%clk 0:02:51]} 8. Nc3 {[%clk 0:02:54]}  d6 {[%clk 0:02:50]} 9. d3 {[%clk 0:02:54]}  e6 {[%clk 0:02:49]} 10. Be3 {[%clk 0:02:52]}  Ne7 {[%clk 0:02:48]} 11. d4 {[%clk 0:02:52]}  cxd4 {[%clk 0:02:41]} 12. Bxd4 {[%clk 0:02:53]}  O-O {[%clk 0:02:40]} 13. Bxg7 {[%clk 0:02:51]}  Kxg7 {[%clk 0:02:40]} 14. Qd4+ {[%clk 0:02:52]}  f6 {[%clk 0:02:38]} 15. Rad1 {[%clk 0:02:52]}  Nc6 {[%clk 0:02:33]} 16. Qxd6 {[%clk 0:02:52]}  Qb6+ {[%clk 0:02:28]} 17. Kh1 {[%clk 0:02:35]}  Rd8 {[%clk 0:02:28]} 18. Qa3 {[%clk 0:02:28]}  Bd7 {[%clk 0:02:25]} 19. Na4 {[%clk 0:02:27]}  Qc7 {[%clk 0:02:19]} 20. Qc5 {[%clk 0:02:04]}  Be8 {[%clk 0:02:10]} 21. e5 {[%clk 0:01:56]}  fxe5 {[%clk 0:01:58]} 22. fxe5 {[%clk 0:01:56]}  Rxd1 {[%clk 0:01:57]} 23. Rxd1 {[%clk 0:01:57]}  Rd8 {[%clk 0:01:57]} 24. Rf1 {[%clk 0:01:57]}  Qa5 {[%clk 0:01:45]} 25. Qxa5 {[%clk 0:01:51]}  Nxa5 {[%clk 0:01:45]} 26. Nc5 {[%clk 0:01:52]}  Rd5 {[%clk 0:01:28]} 27. Nxe6+ {[%clk 0:01:51]}  Kh6 {[%clk 0:01:28]} 28. Nc7 {[%clk 0:01:39]}  Bb5 {[%clk 0:01:22]} 29. Nxd5 {[%clk 0:01:24]}  Bxf1 {[%clk 0:01:22]} 30. e6 {[%clk 0:01:25]}  Kg7 {[%clk 0:01:21]} 31. e7 {[%clk 0:01:14]}  Kf7 {[%clk 0:01:21]} 32. Ng5+ {[%clk 0:01:15]}  Ke8 {[%clk 0:01:21]} 33. Nxh7 {[%clk 0:01:14]}  Bb5 {[%clk 0:01:19]} 34. b3 {[%clk 0:01:01]}  Bc6 {[%clk 0:01:13]} 35. Nhf6+ {[%clk 0:00:59]}  Kf7 {[%clk 0:01:13]} 36. c4 {[%clk 0:00:32]}  b5 {[%clk 0:01:12]} 37. cxb5 {[%clk 0:00:31]}  axb5 {[%clk 0:01:12]} 38. e8=Q+ {[%clk 0:00:30]}  Bxe8 {[%clk 0:01:12]} 39. Nxe8 {[%clk 0:00:31]}  Kxe8 {[%clk 0:01:12]} 40. Nc7+ {[%clk 0:00:32]}  Ke7 {[%clk 0:01:10]} 41. Nxb5 {[%clk 0:00:33]}  Nc6 {[%clk 0:01:09]} 42. Kg1 {[%clk 0:00:29]}  Ne5 {[%clk 0:01:05]} 43. a4 {[%clk 0:00:21]}  Kd7 {[%clk 0:01:04]} 44. Kf2 {[%clk 0:00:17]}  Nd3+ {[%clk 0:01:04]} 45. Ke3 {[%clk 0:00:18]}  Nc5 {[%clk 0:01:04]} 46. Nd4 {[%clk 0:00:17]}  Kd6 {[%clk 0:01:04]} 47. a5 {[%clk 0:00:15]}  Kd5 {[%clk 0:01:04]} 48. b4 {[%clk 0:00:16]}  Na4 {[%clk 0:01:00]} 49. b5 {[%clk 0:00:14]}  Kc5 {[%clk 0:00:59]} 50. a6 {[%clk 0:00:12]}  Nb6 {[%clk 0:00:58]} 51. Ke4 {[%clk 0:00:11]}  Na8 {[%clk 0:00:53]} 52. Ke5 {[%clk 0:00:10]}  Nc7 {[%clk 0:00:51]} 53. a7 {[%clk 0:00:08]}  Kb6 {[%clk 0:00:47]} 54. Kf6 {[%clk 0:00:07]}  Kxa7 {[%clk 0:00:46]} 55. Kxg6 {[%clk 0:00:08]}  Kb6 {[%clk 0:00:46]} 56. h4 {[%clk 0:00:08]}  Kc5 {[%clk 0:00:46]} 57. h5 {[%clk 0:00:08]}  Kxd4 {[%clk 0:00:45]} 58. b6 {[%clk 0:00:08]}  Nd5 {[%clk 0:00:40]} 59. b7 {[%clk 0:00:07]}  Ne7+ {[%clk 0:00:40]} 60. Kf7 {[%clk 0:00:07]}  Nc6 {[%clk 0:00:41]} 61. h6 {[%clk 0:00:06]}  Nd8+ {[%clk 0:00:41]} 62. Kf6 {[%clk 0:00:05]}  Nxb7 {[%clk 0:00:41]} 63. h7 {[%clk 0:00:06]}  Nc5 {[%clk 0:00:40]} 64. h8=Q {[%clk 0:00:05]}  Kd5 {[%clk 0:00:40]} 65. Qd8+ {[%clk 0:00:04]}  Kc6 {[%clk 0:00:40]} 66. Qc8+ {[%clk 0:00:04]}  Kd5 {[%clk 0:00:40]} 67. Qxc5+ {[%clk 0:00:05]}  Kxc5 {[%clk 0:00:38]} 68. g4 {[%clk 0:00:06]} 1-0


[Site "https://www.chess.com"]

[Event "Titled Tuesday Blitz November 07 Late 2023"]
[White "Elbebiber"]
[Black "Maect19"]
[WhiteElo "2115"]
[BlackElo "2334"]
[Result "0-1"]
[Round "9"]
[TimeControl "180+1"]
[Date "2023.11.07"]
[WhiteClock "0:00:18"]
[BlackClock "0:01:16"]
[Board "91"]

1. f4 {[%clk 0:03:00]}  d5 {[%clk 0:02:58]} 2. Nf3 {[%clk 0:02:58]}  g6 {[%clk 0:02:57]} 3. e3 {[%clk 0:02:49]}  Bg7 {[%clk 0:02:57]} 4. Bb5+ {[%clk 0:02:49]}  c6 {[%clk 0:02:57]} 5. Be2 {[%clk 0:02:49]}  Bg4 {[%clk 0:02:56]} 6. h3 {[%clk 0:02:48]}  Bxf3 {[%clk 0:02:56]} 7. Bxf3 {[%clk 0:02:49]}  Nd7 {[%clk 0:02:56]} 8. O-O {[%clk 0:02:49]}  e5 {[%clk 0:02:56]} 9. d3 {[%clk 0:02:40]}  exf4 {[%clk 0:02:51]} 10. exf4 {[%clk 0:02:40]}  Ne7 {[%clk 0:02:52]} 11. d4 {[%clk 0:02:28]}  O-O {[%clk 0:02:49]} 12. c3 {[%clk 0:02:27]}  Qb6 {[%clk 0:02:47]} 13. Qb3 {[%clk 0:02:22]}  Rfe8 {[%clk 0:02:46]} 14. Be3 {[%clk 0:02:14]}  Nf5 {[%clk 0:02:44]} 15. Bf2 {[%clk 0:02:14]}  Nf6 {[%clk 0:02:40]} 16. Nd2 {[%clk 0:02:13]}  Nd6 {[%clk 0:02:39]} 17. Rfe1 {[%clk 0:02:05]}  Nfe4 {[%clk 0:02:38]} 18. Nxe4 {[%clk 0:01:36]}  dxe4 {[%clk 0:02:30]} 19. Be2 {[%clk 0:01:35]}  Nf5 {[%clk 0:02:18]} 20. Bc4 {[%clk 0:01:26]}  Qxb3 {[%clk 0:02:13]} 21. Bxb3 {[%clk 0:01:22]}  e3 {[%clk 0:02:13]} 22. g4 {[%clk 0:01:10]}  exf2+ {[%clk 0:02:12]} 23. Kxf2 {[%clk 0:01:11]}  Nd6 {[%clk 0:02:09]} 24. Kf3 {[%clk 0:01:08]}  Kf8 {[%clk 0:02:07]} 25. Rad1 {[%clk 0:01:04]}  Rxe1 {[%clk 0:02:06]} 26. Rxe1 {[%clk 0:01:05]}  Re8 {[%clk 0:02:06]} 27. Rd1 {[%clk 0:01:06]}  f5 {[%clk 0:02:03]} 28. gxf5 {[%clk 0:01:04]}  Nxf5 {[%clk 0:02:03]} 29. Rd3 {[%clk 0:01:01]}  Ke7 {[%clk 0:01:53]} 30. d5 {[%clk 0:01:00]}  c5 {[%clk 0:01:52]} 31. Ba4 {[%clk 0:00:57]}  Rd8 {[%clk 0:01:50]} 32. c4 {[%clk 0:00:57]}  Kd6 {[%clk 0:01:45]} 33. Rd2 {[%clk 0:00:43]}  a6 {[%clk 0:01:41]} 34. Kg4 {[%clk 0:00:37]}  Ne3+ {[%clk 0:01:36]} 35. Kf3 {[%clk 0:00:37]}  Nxc4 {[%clk 0:01:35]} 36. Re2 {[%clk 0:00:37]}  b5 {[%clk 0:01:32]} 37. Bb3 {[%clk 0:00:33]}  Kxd5 {[%clk 0:01:20]} 38. Rd2+ {[%clk 0:00:31]}  Bd4 {[%clk 0:01:20]} 39. Rg2 {[%clk 0:00:22]}  a5 {[%clk 0:01:19]} 40. Rg5+ {[%clk 0:00:21]}  Kc6 {[%clk 0:01:17]} 41. a4 {[%clk 0:00:18]}  Nd2+ {[%clk 0:01:16]} 0-1


[Site "https://www.chess.com"]

[Event "Titled Tuesday Blitz November 07 Late 2023"]
[White "Ghosh, Chanchal Kumer"]
[Black "Vila Dupla, Aurelio"]
[WhiteFideId "10201858"]
[BlackFideId "2203383"]
[WhiteElo "2070"]
[BlackElo "2180"]
[Result "0-1"]
[Round "9"]
[TimeControl "180+1"]
[Date "2023.11.07"]
[WhiteClock "0:00:09"]
[BlackClock "0:00:11"]
[Board "95"]

1. e4 {[%clk 0:03:00]}  c5 {[%clk 0:02:55]} 2. Nf3 {[%clk 0:03:00]}  d6 {[%clk 0:02:54]} 3. d4 {[%clk 0:03:01]}  cxd4 {[%clk 0:02:54]} 4. Nxd4 {[%clk 0:03:01]}  Nf6 {[%clk 0:02:53]} 5. Nc3 {[%clk 0:03:02]}  g6 {[%clk 0:02:53]} 6. f4 {[%clk 0:03:01]}  Nc6 {[%clk 0:02:52]} 7. Nxc6 {[%clk 0:02:55]}  bxc6 {[%clk 0:02:51]} 8. e5 {[%clk 0:02:55]}  Nd7 {[%clk 0:02:51]} 9. exd6 {[%clk 0:02:53]}  exd6 {[%clk 0:02:52]} 10. Be2 {[%clk 0:02:47]}  Be7 {[%clk 0:02:49]} 11. O-O {[%clk 0:02:46]}  O-O {[%clk 0:02:49]} 12. Kh1 {[%clk 0:02:46]}  d5 {[%clk 0:02:48]} 13. Bf3 {[%clk 0:02:46]}  Bf6 {[%clk 0:02:32]} 14. Ne2 {[%clk 0:02:41]}  Rb8 {[%clk 0:02:27]} 15. c3 {[%clk 0:02:41]}  Ba6 {[%clk 0:02:27]} 16. Re1 {[%clk 0:02:40]}  Bxe2 {[%clk 0:02:25]} 17. Rxe2 {[%clk 0:02:36]}  Nc5 {[%clk 0:02:23]} 18. Be3 {[%clk 0:02:32]}  Qd6 {[%clk 0:01:49]} 19. g3 {[%clk 0:02:23]}  Rfe8 {[%clk 0:01:46]} 20. f5 {[%clk 0:01:47]}  a5 {[%clk 0:01:43]} 21. Bf4 {[%clk 0:01:34]}  Be5 {[%clk 0:01:34]} 22. Rxe5 {[%clk 0:01:27]}  Rxe5 {[%clk 0:01:34]} 23. Qd4 {[%clk 0:01:25]}  Rbe8 {[%clk 0:01:27]} 24. fxg6 {[%clk 0:01:08]}  hxg6 {[%clk 0:01:25]} 25. Bxe5 {[%clk 0:01:03]}  Rxe5 {[%clk 0:01:24]} 26. Rf1 {[%clk 0:00:58]}  Rf5 {[%clk 0:01:02]} 27. Kg2 {[%clk 0:00:52]}  Ne6 {[%clk 0:00:56]} 28. Qa7 {[%clk 0:00:50]}  Qc5 {[%clk 0:00:49]} 29. Qa6 {[%clk 0:00:38]}  Kg7 {[%clk 0:00:42]} 30. Re1 {[%clk 0:00:31]}  d4 {[%clk 0:00:37]} 31. Bg4 {[%clk 0:00:21]}  Qd5+ {[%clk 0:00:32]} 32. Kg1 {[%clk 0:00:21]}  Re5 {[%clk 0:00:18]} 33. Rxe5 {[%clk 0:00:20]}  Qxe5 {[%clk 0:00:18]} 34. Bxe6 {[%clk 0:00:19]}  Qxe6 {[%clk 0:00:13]} 35. Qxa5 {[%clk 0:00:19]}  Qe3+ {[%clk 0:00:13]} 36. Kg2 {[%clk 0:00:18]}  d3 {[%clk 0:00:13]} 37. Qd8 {[%clk 0:00:15]}  d2 {[%clk 0:00:12]} 38. Kh3 {[%clk 0:00:13]}  Qe6+ {[%clk 0:00:10]} 39. Kg2 {[%clk 0:00:13]}  Qe2+ {[%clk 0:00:10]} 40. Kh3 {[%clk 0:00:09]}  d1=Q {[%clk 0:00:11]} 0-1


[Site "https://www.chess.com"]

[Event "Titled Tuesday Blitz November 07 Late 2023"]
[White "Bongo Akanga Ndjila, Barthelemy"]
[Black "katharinareinecke"]
[WhiteFideId "10609431"]
[WhiteElo "2022"]
[BlackElo "1936"]
[Result "0-1"]
[Round "9"]
[TimeControl "180+1"]
[Date "2023.11.07"]
[WhiteClock "0:00:00"]
[BlackClock "0:00:23"]
[Board "99"]

1. d4 {[%clk 0:02:22]}  d5 {[%clk 0:02:59]} 2. c4 {[%clk 0:02:21]}  c6 {[%clk 0:02:59]} 3. Nc3 {[%clk 0:02:21]}  Nf6 {[%clk 0:02:57]} 4. g3 {[%clk 0:02:14]}  e6 {[%clk 0:02:51]} 5. e3 {[%clk 0:02:11]}  Be7 {[%clk 0:02:35]} 6. Nf3 {[%clk 0:02:10]}  O-O {[%clk 0:02:34]} 7. Qc2 {[%clk 0:02:06]}  b6 {[%clk 0:02:30]} 8. Ne5 {[%clk 0:02:05]}  Bb7 {[%clk 0:02:29]} 9. g4 {[%clk 0:02:03]}  Nbd7 {[%clk 0:02:16]} 10. g5 {[%clk 0:01:58]}  Ne8 {[%clk 0:02:12]} 11. f4 {[%clk 0:01:57]}  Nxe5 {[%clk 0:02:01]} 12. dxe5 {[%clk 0:01:56]}  dxc4 {[%clk 0:01:54]} 13. Bxc4 {[%clk 0:01:51]}  c5 {[%clk 0:01:54]} 14. Rg1 {[%clk 0:01:35]}  a6 {[%clk 0:01:50]} 15. Ne4 {[%clk 0:01:32]}  b5 {[%clk 0:01:47]} 16. Be2 {[%clk 0:01:26]}  c4 {[%clk 0:01:43]} 17. Nf6+ {[%clk 0:01:23]}  Nxf6 {[%clk 0:01:35]} 18. gxf6 {[%clk 0:01:22]}  Bb4+ {[%clk 0:01:23]} 19. Kf2 {[%clk 0:01:20]}  g6 {[%clk 0:01:23]} 20. h4 {[%clk 0:01:16]}  Qd5 {[%clk 0:01:20]} 21. h5 {[%clk 0:01:12]}  Qe4 {[%clk 0:01:19]} 22. Qd1 {[%clk 0:01:03]}  Rfd8 {[%clk 0:01:13]} 23. Qf1 {[%clk 0:01:02]}  Bc5 {[%clk 0:01:10]} 24. Rg3 {[%clk 0:00:56]}  Qxf4+ {[%clk 0:01:10]} 25. Bf3 {[%clk 0:00:54]}  Bxf3 {[%clk 0:01:04]} 26. Rxf3 {[%clk 0:00:54]}  Qxe5 {[%clk 0:01:03]} 27. hxg6 {[%clk 0:00:52]}  hxg6 {[%clk 0:00:55]} 28. Qh3 {[%clk 0:00:52]}  Qh5 {[%clk 0:00:49]} 29. Qg3 {[%clk 0:00:21]}  Rd5 {[%clk 0:00:42]} 30. Ke2 {[%clk 0:00:13]}  Rg5 {[%clk 0:00:39]} 31. Qf2 {[%clk 0:00:11]}  Qh1 {[%clk 0:00:32]} 32. b3 {[%clk 0:00:06]}  Rg2 {[%clk 0:00:30]} 33. Bb2 {[%clk 0:00:04]}  Rxf2+ {[%clk 0:00:30]} 34. Rxf2 {[%clk 0:00:05]}  Qh5+ {[%clk 0:00:29]} 35. Kd2 {[%clk 0:00:05]}  Qd5+ {[%clk 0:00:29]} 36. Ke2 {[%clk 0:00:05]}  cxb3 {[%clk 0:00:29]} 37. Rh1 {[%clk 0:00:02]}  Qc4+ {[%clk 0:00:27]} 38. Kf3 {[%clk 0:00:00]}  bxa2 {[%clk 0:00:23]} 0-1


[Site "https://www.chess.com"]

[Event "Titled Tuesday Blitz November 07 Late 2023"]
[White "Desideri, Ricardo Maruchi"]
[Black "Travadon, Loic"]
[WhiteFideId "2110440"]
[BlackFideId "26092131"]
[WhiteElo "1989"]
[BlackElo "2246"]
[Result "1-0"]
[Round "9"]
[TimeControl "180+1"]
[Date "2023.11.07"]
[WhiteClock "0:01:38"]
[BlackClock "0:00:00"]
[Board "100"]

1. e4 {[%clk 0:02:56]}  e5 {[%clk 0:02:59]} 2. f4 {[%clk 0:02:55]}  d5 {[%clk 0:02:58]} 3. exd5 {[%clk 0:02:55]}  exf4 {[%clk 0:02:59]} 4. Nf3 {[%clk 0:02:51]}  Nf6 {[%clk 0:02:59]} 5. d4 {[%clk 0:02:49]}  Nxd5 {[%clk 0:02:55]} 6. Nc3 {[%clk 0:02:47]}  Bb4 {[%clk 0:02:51]} 7. Bc4 {[%clk 0:02:41]}  Bxc3+ {[%clk 0:02:49]} 8. bxc3 {[%clk 0:02:37]}  c6 {[%clk 0:02:50]} 9. O-O {[%clk 0:02:35]}  O-O {[%clk 0:02:48]} 10. Bxd5 {[%clk 0:02:31]}  cxd5 {[%clk 0:02:49]} 11. Bxf4 {[%clk 0:02:30]}  Nc6 {[%clk 0:02:49]} 12. Ne5 {[%clk 0:02:26]}  Nxe5 {[%clk 0:02:47]} 13. Bxe5 {[%clk 0:02:26]}  f6 {[%clk 0:02:48]} 14. Bg3 {[%clk 0:02:24]}  Bd7 {[%clk 0:02:43]} 15. Rb1 {[%clk 0:02:20]}  a6 {[%clk 0:02:41]} 16. Rxb7 {[%clk 0:02:15]}  Bb5 {[%clk 0:02:34]} 17. Re1 {[%clk 0:02:06]}  Re8 {[%clk 0:02:23]} 18. Qg4 {[%clk 0:01:51]}  Rxe1+ {[%clk 0:02:16]} 19. Bxe1 {[%clk 0:01:51]}  g6 {[%clk 0:02:06]} 20. Qe6+ {[%clk 0:01:46]}  Kh8 {[%clk 0:02:03]} 21. Bh4 {[%clk 0:01:43]}  g5 {[%clk 0:01:56]} 22. Bxg5 {[%clk 0:01:38]}  fxg5 {[%clk 0:00:00]} 23. Qe5+ {[%clk 0:01:38]} 1-0


[Site "https://www.chess.com"]

[Event "Titled Tuesday Blitz November 07 Late 2023"]
[White "Smirnov, Timofey"]
[Black "Dias, Joao Batista"]
[WhiteFideId "24176427"]
[BlackFideId "2108240"]
[WhiteElo "2081"]
[BlackElo "1964"]
[Result "1-0"]
[Round "9"]
[TimeControl "180+1"]
[Date "2023.11.07"]
[WhiteClock "0:01:13"]
[BlackClock "0:02:07"]
[Board "103"]

1. d4 {[%clk 0:03:00]}  d5 {[%clk 0:02:55]} 2. Bf4 {[%clk 0:03:00]}  Nf6 {[%clk 0:02:53]} 3. e3 {[%clk 0:02:59]}  Nc6 {[%clk 0:02:53]} 4. c3 {[%clk 0:02:49]}  g6 {[%clk 0:02:52]} 5. h3 {[%clk 0:02:47]}  Bg7 {[%clk 0:02:53]} 6. Nf3 {[%clk 0:02:48]}  O-O {[%clk 0:02:54]} 7. Be2 {[%clk 0:02:48]}  Re8 {[%clk 0:02:54]} 8. O-O {[%clk 0:02:48]}  Nd7 {[%clk 0:02:51]} 9. Nbd2 {[%clk 0:02:45]}  e5 {[%clk 0:02:51]} 10. dxe5 {[%clk 0:02:45]}  Ndxe5 {[%clk 0:02:51]} 11. Nxe5 {[%clk 0:02:45]}  Nxe5 {[%clk 0:02:51]} 12. Nf3 {[%clk 0:02:43]}  c6 {[%clk 0:02:50]} 13. Qc2 {[%clk 0:02:30]}  Bf5 {[%clk 0:02:49]} 14. Qd1 {[%clk 0:02:24]}  Be4 {[%clk 0:02:49]} 15. Nxe5 {[%clk 0:02:23]}  Bxe5 {[%clk 0:02:48]} 16. Bxe5 {[%clk 0:02:23]}  Rxe5 {[%clk 0:02:48]} 17. Bf3 {[%clk 0:02:21]}  Qf6 {[%clk 0:02:48]} 18. Bxe4 {[%clk 0:02:20]}  Rxe4 {[%clk 0:02:47]} 19. Qf3 {[%clk 0:02:11]}  Qxf3 {[%clk 0:02:43]} 20. gxf3 {[%clk 0:02:12]}  Re6 {[%clk 0:02:42]} 21. Rad1 {[%clk 0:02:10]}  Kg7 {[%clk 0:02:42]} 22. Kg2 {[%clk 0:02:09]}  Kf6 {[%clk 0:02:41]} 23. f4 {[%clk 0:02:09]}  Rae8 {[%clk 0:02:39]} 24. Kf3 {[%clk 0:02:08]}  h5 {[%clk 0:02:39]} 25. Rg1 {[%clk 0:02:08]}  a5 {[%clk 0:02:32]} 26. a4 {[%clk 0:02:08]}  Ra8 {[%clk 0:02:31]} 27. Rd4 {[%clk 0:01:57]}  Ra6 {[%clk 0:02:31]} 28. Rd2 {[%clk 0:01:46]}  Rb6 {[%clk 0:02:31]} 29. h4 {[%clk 0:01:44]}  Rb3 {[%clk 0:02:30]} 30. Ke2 {[%clk 0:01:38]}  Re8 {[%clk 0:02:29]} 31. Kd3 {[%clk 0:01:38]}  b5 {[%clk 0:02:28]} 32. axb5 {[%clk 0:01:35]}  cxb5 {[%clk 0:02:28]} 33. Kc2 {[%clk 0:01:35]}  a4 {[%clk 0:02:26]} 34. Rxd5 {[%clk 0:01:33]}  b4 {[%clk 0:02:26]} 35. c4 {[%clk 0:01:25]}  Rc8 {[%clk 0:02:22]} 36. Rd4 {[%clk 0:01:23]}  Rc5 {[%clk 0:02:16]} 37. Rg5 {[%clk 0:01:18]}  Rxg5 {[%clk 0:02:15]} 38. fxg5+ {[%clk 0:01:19]}  Kf5 {[%clk 0:02:07]} 39. c5 {[%clk 0:01:13]} 1-0


[Site "https://www.chess.com"]